fUST/lending_fUST_20260407
["ID","MTS","AMOUNT","RATE_DAILY","PERIOD"]
[419945438,1775531454944,-1000.0,0.00022321,2]
[419945439,1775531454953,-345.10845839,0.00022368,2]
[419945440,1775531454963,-1500.0,0.00022368,2]
[419945441,1775531454973,-1500.0,0.00022368,2]
[419945442,1775531454983,-2487.15318209,0.00022418,2]
[419945443,1775531454993,-1501.79879574,0.00022468,2]
[419945444,1775531455004,-523.02314893,0.00022468,2]
[419945445,1775531455015,-1500.0,0.00022468,2]
[419945446,1775531455025,-1500.0,0.00022468,2]
[419945447,1775531455035,-1500.0,0.00022468,2]
[419945448,1775531455045,-1500.0,0.00022468,2]
[419945449,1775531455055,-1500.0,0.00022468,2]
[419945450,1775531455064,-1623.61731189,0.00022468,2]
[419945451,1775531455073,-1500.0,0.00022468,2]
[419945452,1775531455083,-1006.6527953,0.00022468,2]
[419945453,1775531455093,-1000.0,0.00022521,2]
[419945454,1775531455105,-1000.0,0.00022521,2]
[419945455,1775531455115,-1000.0,0.00022521,2]
[419945456,1775531455124,-1000.0,0.00022521,2]
[419945457,1775531455134,-1000.0,0.00022521,2]
[419945458,1775531455144,-250.0,0.00022521,2]
[419945459,1775531455154,-1000.0,0.00022521,2]
[419945460,1775531455164,-1000.0,0.00022521,2]
[419945461,1775531455174,-1000.0,0.00022521,2]
[419945462,1775531455183,-1000.0,0.00022521,2]
[419945463,1775531455193,-160.01548342,0.00022521,2]
[419945464,1775531455202,-1000.0,0.00022521,2]
[419945465,1775531455212,-682.39292059,0.00022521,2]
[419945466,1775531455222,-1000.0,0.00022521,2]
[419945467,1775531455232,-1000.0,0.00022521,2]
[419945468,1775531455241,-1000.51704582,0.00022521,2]
[419945469,1775531455251,-1000.95849948,0.00022521,2]
[419945470,1775531455261,-1001.5607907,0.00022521,2]
[419945471,1775531455271,-1000.9263062,0.00022521,2]
[419945472,1775531455281,-1000.92321015,0.00022521,2]
[419945473,1775531455291,-555.1155415,0.00022521,2]
[419945474,1775531455302,-1000.0,0.00022521,2]
[419945475,1775531455311,-1000.0,0.00022521,2]
[419945476,1775531455321,-1000.0,0.00022521,2]
[419945477,1775531455332,-265.04203316,0.00022521,2]
[419945478,1775531455341,-1000.0,0.00022521,2]
[419945479,1775531455352,-1000.0,0.00022521,2]
[419945480,1775531455361,-1003.48267865,0.00022521,2]
[419945481,1775531455370,-1000.0,0.00022521,2]
[419945482,1775531455379,-300.0,0.00022521,2]
[419945483,1775531455388,-250.0,0.00022521,2]
[419945484,1775531455397,-151.0,0.00022521,2]
[419945485,1775531455406,-151.0,0.00022521,2]
[419945486,1775531455415,-1124.3,0.00022545,2]
[419945487,1775531455424,-250.0,0.00022575,4]
[419945488,1775531455433,-250.0,0.00022575,4]
[419945489,1775531455442,-250.0,0.00022575,4]
[419945490,1775531455451,-250.0,0.00022575,4]
[419945491,1775531455460,-259.77,0.00022575,4]
[419945492,1775531455469,-151.0,0.000226,2]
[419945493,1775531455478,-151.0,0.000226,2]
[419945494,1775531455487,-792.0,0.000226,2]
[419945495,1775531455496,-888.98824731,0.00022636,2]
[419945496,1775531455504,-151.0,0.00022731,2]
[419945497,1775531455514,-151.0,0.00022731,2]
[419945498,1775531455523,-151.0,0.00022731,2]
[419945499,1775531455532,-151.0,0.00022731,2]
[419945500,1775531455542,-151.0,0.00022731,2]
[419945501,1775531455553,-151.0,0.00022731,2]
[419945502,1775531455562,-252.07296612,0.00022731,2]
[419945503,1775531455572,-239.077172,0.00022731,2]
[419945504,1775531455581,-239.077172,0.00022731,2]
[419945505,1775531455591,-239.077172,0.00022731,2]
[419945506,1775531455600,-239.077172,0.00022731,2]
[419945507,1775531455609,-239.077172,0.00022731,2]
[419945508,1775531455618,-239.077172,0.00022731,2]
[419945509,1775531455627,-239.077172,0.00022731,2]
[419945510,1775531455637,-239.077166,0.00022731,2]
[419945511,1775531455646,-151.0,0.00022731,2]
[419945512,1775531455655,-297.923787,0.00022731,2]
[419945513,1775531455664,-3025.44326607,0.00022742,2]
[419945514,1775531455673,-504.29883115,0.00022768,2]
[419945515,1775531455682,-1084.93489304,0.00022768,2]
[419945516,1775531455691,-17395.16371362,0.000228,2]
[419945517,1775531455701,-1124.3,0.00022809,2]
[419945518,1775531455710,-222.66261232,0.00022843,2]
[419945519,1775531455719,-500.0,0.00022849,2]
[419945520,1775531455728,-1501.13251472,0.00022868,2]
[419945521,1775531455737,-1500.95463491,0.00022868,2]
[419945522,1775531455747,-1501.31392894,0.00022868,2]
[419945523,1775531455756,-1411.31076797,0.00022868,2]
[419945524,1775531455765,-1160.07325886,0.00022868,2]
[419945525,1775531455775,-1501.14444584,0.00022868,2]
[419945526,1775531455784,-1501.43904163,0.00022868,2]
[419945527,1775531455793,-1500.0,0.00022868,2]
[419945528,1775531455802,-1501.38133325,0.00022868,2]
[419945529,1775531455812,-1501.16994901,0.00022868,2]
[419945530,1775531455821,-1501.27731319,0.00022868,2]
[419945531,1775531455831,-1501.23539815,0.00022868,2]
[419945532,1775531455840,-1501.26690207,0.00022868,2]
[419945533,1775531455850,-1640.45724762,0.00022868,2]
[419945534,1775531455859,-1500.0,0.00022868,2]
[419945535,1775531455868,-1500.0,0.00022868,2]
[419945536,1775531455877,-501.15306461,0.00022891,2]
[419945537,1775531455900,-501.20611422,0.00022891,2]
[419945538,1775531455909,-1508.13493713,0.00022916,2]
[419945539,1775531455918,-2000.0,0.00022916,2]
[419945540,1775531455927,-203.5536219,0.00022962,2]
[419945541,1775531455936,-2579.17784983,0.00022966,2]
[419945542,1775531455946,-154.0,0.00023,2]
[419945543,1775531455955,-155.0,0.00023,2]
[419945544,1775531455964,-159.0,0.00023,2]
[419945545,1775531455973,-314.0,0.00023,2]
[419945546,1775531455982,-153.0,0.00023,2]
[419945547,1775531455991,-2000.0,0.00023016,2]
[419945548,1775531456001,-438.46911656,0.00023016,2]
[419945549,1775531456010,-2000.0,0.00023016,2]
[419945550,1775531456020,-2000.0,0.00023016,2]
[419945551,1775531456029,-2000.0,0.00023016,2]
[419945552,1775531456038,-1500.75358586,0.00023068,2]
[419945553,1775531456048,-1500.90464902,0.00023068,2]
[419945554,1775531456057,-1500.83748446,0.00023068,2]
[419945555,1775531456066,-1501.05683426,0.00023068,2]
[419945556,1775531456075,-1500.73598279,0.00023068,2]
[419945557,1775531456084,-200.61033241,0.00023068,2]
[419945558,1775531456093,-1504.21339656,0.00023068,2]
[419945559,1775531456103,-1501.37993753,0.00023068,2]
[419945560,1775531456112,-1501.3908561,0.00023068,2]
[419945561,1775531456122,-394.81840203,0.00023068,2]
[419945562,1775531456131,-692.61951438,0.00023068,2]
[419945563,1775531456141,-1500.88807163,0.00023068,2]
[419945564,1775531456150,-1500.78071371,0.00023068,2]
[419945565,1775531456159,-1501.46400335,0.00023068,2]
[419945566,1775531456168,-554.41908328,0.00023068,2]
[419945567,1775531456177,-1502.17316127,0.00023068,2]
[419945568,1775531456186,-1501.25750145,0.00023068,2]
[419945569,1775531456195,-1558.25973144,0.00023068,2]
[419945570,1775531456204,-1506.47159904,0.00023068,2]
[419945571,1775531456213,-450.0,0.00023068,2]
[419945572,1775531456222,-350.0,0.00023068,2]
[419945573,1775531456232,-1124.3,0.00023072,2]
[419945574,1775531456242,-160.0,0.00023178,3]
[419945575,1775531456251,-1137.79833969,0.00023195,2]
[419945576,1775531456261,-195.81583196,0.00023195,2]
[419945577,1775531456271,-250.18695543,0.00023321,2]
[419945578,1775531456280,-1124.3,0.00023336,2]
[419945579,1775531456290,-2000.0,0.00023416,2]
[419945580,1775531456300,-2000.0,0.00023416,2]
[419945581,1775531456310,-2000.0,0.00023416,2]
[419945582,1775531456319,-160.95310541,0.00023435,7]
[419945583,1775531456329,-2500.0,0.00023464,2]
[419945584,1775531456339,-644.45851509,0.00023514,2]
[419945585,1775531456348,-2500.0,0.00023564,2]
[419945586,1775531456357,-842.796565,0.00023564,2]
[419945587,1775531456367,-2500.0,0.00023564,2]
[419945588,1775531456376,-2500.0,0.00023564,2]
[419945589,1775531456386,-888.98824731,0.00023582,2]
[419945590,1775531456395,-1124.3,0.00023599,2]
[419945591,1775531456405,-600.0,0.00023616,2]
[419945592,1775531456415,-450.0,0.00023616,2]
[419945593,1775531456425,-1000.02,0.000238,7]
[419945594,1775531456434,-168.0,0.00023825,2]
[419945595,1775531456444,-1124.3,0.00023863,2]
[419945596,1775531456453,-5033.59611625,0.00023877,2]
[419945597,1775531456463,-2500.0,0.00023964,2]
[419945598,1775531456473,-1005.18371197,0.00023964,2]
[419945599,1775531456482,-2500.0,0.00023964,2]
[419945600,1775531456492,-587.0,0.00023969,2]
[419945601,1775531456502,-500.0,0.00023979,2]
[419945602,1775531456512,-500.0,0.00023979,2]
[419945603,1775531456521,-500.0,0.00023979,2]
[419945604,1775531456531,-500.0,0.00023979,2]
[419945605,1775531456540,-500.0,0.00023979,2]
[419945606,1775531456550,-500.0,0.00023979,2]
[419945607,1775531456560,-500.0,0.00023979,2]
[419945608,1775531456570,-500.0,0.00023979,2]
[419945609,1775531456580,-500.0,0.00023979,2]
[419945610,1775531456589,-421.34651801,0.00023979,2]
[419945611,1775531456599,-500.0,0.00023991,2]
[419945612,1775531456608,-275795.89838672,0.00023998,2]
[419945613,1775531456618,-1812.1518436,0.00024,60]
[419945614,1775531456628,-154.0,0.00024,2]
[419945615,1775531456638,-155.0,0.00024,2]
[419945616,1775531456648,-160.30960439,0.00024,2]
[419945617,1775531456658,-314.0,0.00024,2]
[419945618,1775531456668,-160.11141673,0.00024,2]
[419945619,1775531456678,-1124.3,0.00024126,2]
[419945620,1775531456688,-152.0,0.00024151,2]
[419945621,1775531456699,-750.0,0.00024164,2]
[419945622,1775531456709,-550.0,0.00024164,2]
[419945623,1775531456719,-16632.9806797,0.00024183,2]
[419945624,1775531456728,-1211.0,0.00024195,2]
[419945625,1775531456738,-160.0,0.000242,4]
[419945626,1775531456748,-168.0,0.00024209,2]
[419945627,1775531456758,-3025.44326607,0.00024263,2]
[419945628,1775531456768,-165.28271029,0.00024345,2]
[419945629,1775531456777,-1211.0,0.00024356,2]
[419945630,1775531456787,-1124.3,0.0002439,2]
[419945631,1775531456796,-565.336,0.00024414,2]
[419945632,1775531456806,-184.0,0.00024414,2]
[419945633,1775531456816,-440.0,0.00024414,2]
[419945634,1775531456826,-160.95310541,0.00024423,7]
[419945635,1775531456836,-168.0,0.00024447,2]
[419945636,1775531456845,-3000.0,0.00024512,2]
[419945637,1775531456855,-3000.0,0.00024512,2]
[419945638,1775531456865,-233.38,0.00024513,2]
[419945639,1775531456874,-888.98824731,0.00024527,2]
[419945640,1775531456884,-168.0,0.00024539,2]
[419945641,1775531456893,-1211.0,0.00024616,2]
[419945642,1775531456902,-1124.3,0.00024653,2]
[419945643,1775531456912,-246.95863,0.00024658,2]
[419945644,1775531456921,-246.95863,0.00024658,2]
[419945645,1775531456931,-246.95863,0.00024658,2]
[419945646,1775531456940,-246.95863,0.00024658,2]
[419945647,1775531456949,-246.95863,0.00024658,2]
[419945648,1775531456959,-246.95863,0.00024658,2]
[419945649,1775531456968,-246.95863,0.00024658,2]
[419945650,1775531456978,-246.95863,0.00024658,2]
[419945651,1775531456989,-246.95863,0.00024658,2]
[419945652,1775531456999,-246.95863,0.00024658,2]
[419945653,1775531457008,-246.95863,0.00024658,2]
[419945654,1775531457020,-246.95863,0.00024658,2]
[419945655,1775531457032,-246.95863,0.00024658,2]
[419945656,1775531457041,-246.95863,0.00024658,2]
[419945657,1775531457052,-246.95863,0.00024658,2]
[419945658,1775531457062,-246.95863,0.00024658,2]
[419945659,1775531457071,-246.95863,0.00024658,2]
[419945660,1775531457081,-246.95863,0.00024658,2]
[419945661,1775531457091,-246.95863,0.00024658,2]
[419945662,1775531457102,-246.95864,0.00024658,2]
[419945663,1775531457113,-1211.0,0.00024668,2]
[419945664,1775531457123,-1211.0,0.00024712,2]
[419945665,1775531457133,-775.26479098,0.00024712,2]
[419945666,1775531457143,-650.0,0.00024712,2]
[419945667,1775531457153,-168.0,0.00024747,2]
[419945668,1775531457163,-3711.3196428,0.00024799,2]
[419945669,1775531457173,-1000.0,0.000248,10]
[419945670,1775531457182,-491.48242348,0.000248,2]
[419945671,1775531457192,-2020.5693668,0.00024833,2]
[419945672,1775531457201,-168.0,0.00024862,2]
[419945673,1775531457211,-168.0,0.0002487,2]
[419945674,1775531457220,-23238.073989,0.000249,2]
[419945675,1775531457230,-1124.3,0.00024917,2]
[419945676,1775531457239,-330.119729,0.00024935,14]
[419945677,1775531457249,-160.0,0.00024935,14]
[419945678,1775531457259,-944.678777,0.00024935,14]
[419945679,1775531457268,-1729.357554,0.00024935,14]
[419945680,1775531457278,-160.0,0.00024935,14]
[419945681,1775531457288,-165.114522,0.00024935,14]
[419945682,1775531457298,-170.229045,0.00024935,14]
[419945683,1775531457309,-160.0,0.00024935,14]
[419945684,1775531457319,-1461.631076,0.00024935,14]
[419945685,1775531457329,-2763.262153,0.00024935,14]
[419945686,1775531457339,-442.437157,0.00024935,14]
[419945687,1775531457348,-1211.0,0.00024943,2]
[419945688,1775531457358,-1414.72883536,0.00024976,2]
[419945689,1775531457368,-656.5165264,0.00024976,2]
[419945690,1775531457377,-405758.8112595,0.00024988,2]
[419945691,1775531457387,-9686.53642756,0.00025,2]
[419945692,1775531457396,-272.52637717,0.00025,2]
[419945693,1775531457406,-166.0,0.00025,2]
[419945694,1775531457415,-161.0,0.00025,2]
[419945695,1775531457424,-376229.60822549,0.00025,2]
[419945696,1775531457434,-272.84,0.00025,30]
[419945697,1775531457444,-314.0,0.00025,2]
[419945698,1775531457453,-442.69595533,0.00025,2]
[419945699,1775531457462,-160.95310541,0.00025009,7]
[419945700,1775531457471,-160.95310541,0.00025009,7]
[419945701,1775531457481,-3500.0,0.0002506,2]
[419945702,1775531457490,-3500.0,0.0002506,2]
[419945703,1775531457499,-827.47739799,0.00025065,2]
[419945704,1775531458239,-2081.1510818,0.00025065,2]
[419945705,1775531458249,-168.0,0.00025065,2]
[419945706,1775531458259,-1211.0,0.00025089,2]
[419945707,1775531458269,-1211.0,0.00025136,2]
[419945708,1775531458278,-800.0,0.00025165,2]
[419945709,1775531458288,-1124.3,0.0002518,2]
[419945710,1775531458298,-800.0,0.00025183,2]
[419945711,1775531458308,-800.0,0.00025186,2]
[419945712,1775531458319,-500.0,0.00025191,2]
[419945713,1775531458330,-800.0,0.00025192,2]
[419945714,1775531458340,-1211.0,0.00025203,2]
[419945715,1775531458351,-250.0,0.00025205,2]
[419945716,1775531458361,-160.0,0.00025222,5]
[419945717,1775531458371,-161.80679294,0.00025222,5]
[419945718,1775531458381,-160.0,0.00025222,3]
[419945719,1775531458392,-160.0,0.00025222,5]
[419945720,1775531458402,-800.0,0.00025238,2]
[419945721,1775531458412,-800.0,0.00025245,2]
[419945722,1775531458422,-484.78807996,0.00025248,27]
[419945723,1775531458432,-152.35869424,0.00025248,2]
[419945724,1775531458443,-696.24718395,0.0002526,2]
[419945725,1775531458452,-800.0,0.00025283,2]
[419945726,1775531458462,-1211.0,0.00025317,2]
[419945727,1775531458472,-800.0,0.00025352,2]
[419945728,1775531458482,-800.0,0.00025372,2]
[419945729,1775531458492,-224.40077656,0.00025379,2]
[419945730,1775531458502,-800.0,0.00025385,2]
[419945731,1775531458511,-800.0,0.00025391,2]
[419945732,1775531458521,-311.0,0.00025397,16]
[419945733,1775531458531,-800.0,0.00025412,2]
[419945734,1775531458541,-168.0,0.00025416,2]
[419945735,1775531458550,-484.78807996,0.00025431,29]
[419945736,1775531458560,-44644.01023838,0.00025444,2]
[419945737,1775531458585,-2758.43470415,0.00025444,2]
[419945739,1775531805095,2500.0,0.00032876,120]
[419945740,1775531808795,2500.0,0.00032876,120]
[419945741,1775532040071,10000.0,0.00032877,120]
[419945742,1775532048324,10000.0,0.00032877,120]
[419945743,1775532061693,1689.0,0.00032877,120]
[419945744,1775532329696,165.049999,0.0003,120]
[419945841,1775532631856,-300.0,0.00013561,2]
[419945842,1775532631865,-849.0,0.00013561,2]
[419945843,1775532631875,-5000.0,0.00013562,2]
[419945844,1775532631885,-613.0,0.00013562,2]
[419945845,1775532631894,-1000.0,0.00013699,2]
[419945846,1775532631904,-420.0,0.00014863,2]
[419945847,1775532631913,-203.0,0.00016291,2]
[419945848,1775532631922,-2371.11472951,0.0002,2]
[419945849,1775532631935,-3152.97584522,0.0002,2]
[419945850,1775532631948,-1088.06501484,0.0002,2]
[419945851,1775532631959,-433.44637911,0.0002,2]
[419945852,1775532631969,-330.04220898,0.0002,2]
[419945853,1775532631980,-388.53678178,0.0002,2]
[419945855,1775532638111,-3035.81904056,0.0002,2]
[419945856,1775532638121,-4560.0,0.0002,2]
[419945857,1775532638131,-11200.0,0.0002,2]
[419945858,1775532638140,-11900.0,0.0002,2]
[419945859,1775532638149,-8130.0,0.0002,2]
[419945860,1775532638159,-9595.98,0.0002,2]
[419945861,1775532638168,-6800.0,0.0002,2]
[419945862,1775532638178,-6800.0,0.0002,2]
[419945863,1775532638187,-906.64343661,0.0002,2]
[419945864,1775532638199,-977.39074962,0.0002,2]
[419945865,1775532638210,-7452.40311189,0.0002,2]
[419945872,1775532640707,-379.72335834,0.0002,2]
[419945879,1775532640762,-591.51813598,0.0002,2]
[419945881,1775532640773,-351.0,0.0002,2]
[419945883,1775532640784,-1784.44120756,0.0002,2]
[419945885,1775532640794,-1982.6380358,0.0002,2]
[419946063,1775532643027,-1317.89139505,0.000198,2]
[419946065,1775532643039,-2443.43187919,0.000198,2]
[419946081,1775532643188,-367.2916604,0.000198,2]
[419946083,1775532643199,-871.38506536,0.000198,2]
[419946085,1775532643209,-1770.55328788,0.0002,2]
[419946089,1775532643244,-642.98541002,0.0002,2]
[419946377,1775532646277,-3703.8232663,0.0002,2]
[419946378,1775532646287,-7200.0,0.0002,2]
[419946379,1775532646296,-640.32251513,0.0002,2]
[419946381,1775532646334,-5411.77748487,0.0002,2]
[419946383,1775532646343,-7100.0,0.0002,2]
[419946385,1775532646353,-2223.22251513,0.0002,2]
[419946388,1775532646364,-253.7425319,0.0002,2]
[419946391,1775532646390,-6047.01495297,0.0002,2]
[419946393,1775532646400,-3952.10212738,0.0002,2]
[419948315,1775532738334,-2758.43470415,0.000198,2]
[419948337,1775532925989,500.0,8.219e-05,2]
[419948338,1775532926139,500.0,8.219e-05,2]
[419948339,1775532926302,500.0,8.219e-05,2]
[419948340,1775532926462,500.0,8.219e-05,2]
[419948341,1775532926615,500.0,8.219e-05,2]
[419948342,1775532926779,500.0,8.219e-05,2]
[419948343,1775532926947,487.85196399,8.219e-05,2]
[419948375,1775533621702,200.0,0.00020089,120]
[419948376,1775533640594,157.91,0.00020089,120]
[419948377,1775533683155,300.0,0.00013025,2]
[419948379,1775533742729,300.0,0.00013025,2]
[419948385,1775533832039,-430.2497123,0.00012896,2]
[419948397,1775533838250,-4569.7502877,0.00012896,2]
[419948398,1775533838260,-605.0,0.00013026,2]
[419948399,1775533838270,-1000.0,0.00013699,2]
[419948400,1775533838279,-296.62197707,0.00017212,2]
[419948401,1775533838288,-2376.04743272,0.00019146,2]
[419948402,1775533838300,-677.39378888,0.00019146,2]
[419948403,1775533838311,-2797.9003992,0.00019146,2]
[419948404,1775533838320,-159.0,0.000198,2]
[419948405,1775533838329,-354.91239341,0.00019893,2]
[419948407,1775533838338,-124.93555885,0.00019973,2]
[419948624,1775533843243,-127.16101415,0.00019973,2]
[419948626,1775533843253,-721.0,0.00019973,2]
[419948628,1775533843262,-183.15311909,0.00019983,2]
[419948630,1775533843273,-500.0,0.00019992,2]
[419948632,1775533843283,-500.0,0.00019992,2]
[419948634,1775533843292,-38.04735394,0.00019992,2]
[419948636,1775533843304,-461.95264606,0.00019992,2]
[419948638,1775533843313,-500.0,0.00019992,2]
[419948640,1775533843323,-500.0,0.00019992,2]
[419948642,1775533843333,-500.0,0.00019992,2]
[419948644,1775533843342,-67.25523251,0.00019992,2]
[419948646,1775533843354,-396.54944253,0.00019992,2]
[419948652,1775533843406,-36.19532496,0.00019992,2]
[419948654,1775533843416,-323.47369011,0.00019992,2]
[419948950,1775533846302,-176.52630989,0.00019992,2]
[419948952,1775533846312,-500.0,0.00019992,2]
[419948954,1775533846321,-500.0,0.00019992,2]
[419948956,1775533846330,-500.0,0.00019992,2]
[419948958,1775533846340,-500.0,0.00019992,2]
[419948960,1775533846350,-500.0,0.00019992,2]
[419948962,1775533846359,-500.0,0.00019992,2]
[419948964,1775533846368,-500.0,0.00019992,2]
[419948966,1775533846378,-500.0,0.00019992,2]
[419948968,1775533846387,-600.80273367,0.00019992,2]
[419948970,1775533846396,-500.0,0.00019992,2]
[419948972,1775533846405,-500.0,0.00019992,2]
[419948974,1775533846415,-500.0,0.00019992,2]
[419948976,1775533846425,-500.0,0.00019992,2]
[419948978,1775533846434,-500.0,0.00019992,2]
[419948980,1775533846443,-500.0,0.00019992,2]
[419948982,1775533846452,-500.0,0.00019992,2]
[419948984,1775533846461,-500.0,0.00019992,2]
[419948986,1775533846471,-500.0,0.00019992,2]
[419948988,1775533846479,-500.0,0.00019992,2]
[419948990,1775533846489,-441.24499318,0.00019992,2]
[419948992,1775533846498,-500.0,0.00019992,2]
[419948994,1775533846507,-500.0,0.00019992,2]
[419948996,1775533846517,-500.0,0.00019992,2]
[419948998,1775533846527,-500.0,0.00019992,2]
[419949000,1775533846536,-500.0,0.00019992,2]
[419949002,1775533846545,-500.0,0.00019992,2]
[419949004,1775533846554,-500.0,0.00019992,2]
[419949006,1775533846563,-500.0,0.00019992,2]
[419949008,1775533846572,-500.0,0.00019992,2]
[419949010,1775533846581,-500.0,0.00019992,2]
[419949012,1775533846591,-500.0,0.00019992,2]
[419949013,1775533846602,-500.0,0.00019992,2]
[419949015,1775533846611,-500.0,0.00019992,2]
[419949017,1775533846621,-500.0,0.00019992,2]
[419949018,1775533846630,-500.0,0.00019992,2]
[419949019,1775533846638,-500.0,0.00019992,2]
[419949020,1775533846648,-500.0,0.00019992,2]
[419949021,1775533846657,-500.0,0.00019992,2]
[419949022,1775533846666,-500.0,0.00019992,2]
[419949023,1775533846675,-500.0,0.00019992,2]
[419949024,1775533846684,-500.0,0.00019992,2]
[419949025,1775533846693,-500.0,0.00019992,2]
[419949026,1775533846702,-500.0,0.00019992,2]
[419949027,1775533846711,-500.0,0.00019992,2]
[419949028,1775533846721,-500.0,0.00019992,2]
[419949029,1775533846731,-500.0,0.00019992,2]
[419949030,1775533846740,-500.0,0.00019992,2]
[419949031,1775533846750,-500.0,0.00019992,2]
[419949032,1775533846759,-485.28877643,0.00019992,2]
[419949033,1775533846768,-500.0,0.00019992,2]
[419949034,1775533846777,-500.0,0.00019992,2]
[419949035,1775533846787,-425.63564798,0.00019992,2]
[419949036,1775533846801,-74.36435202,0.00019992,2]
[419949037,1775533846809,-500.0,0.00019992,2]
[419949038,1775533846819,-500.0,0.00019992,2]
[419949039,1775533846829,-500.0,0.00019992,2]
[419949040,1775533846838,-500.0,0.00019992,2]
[419949041,1775533846847,-500.0,0.00019992,2]
[419949042,1775533846857,-500.0,0.00019992,2]
[419949043,1775533846866,-650.0,0.00019992,2]
[419949044,1775533846875,-500.0,0.00019992,2]
[419949045,1775533846884,-500.0,0.00019992,2]
[419949046,1775533846893,-500.0,0.00019992,2]
[419949047,1775533846902,-500.0,0.00019992,2]
[419949048,1775533846912,-500.0,0.00019992,2]
[419949049,1775533846921,-500.0,0.00019992,2]
[419949050,1775533846931,-500.0,0.00019992,2]
[419949051,1775533846940,-500.0,0.00019992,2]
[419949052,1775533846949,-500.0,0.00019992,2]
[419949054,1775533846960,-500.0,0.00019992,2]
[419949056,1775533846969,-500.0,0.00019992,2]
[419949058,1775533846978,-500.0,0.00019992,2]
[419949060,1775533846987,-500.0,0.00019992,2]
[419949062,1775533846996,-500.0,0.00019992,2]
[419949064,1775533847005,-500.0,0.0002,2]
[419949066,1775533847015,-175.898118,0.00020089,2]
[419949068,1775533847024,-3300.0,0.00020182,2]
[419949070,1775533847034,-402.414003,0.00020193,2]
[419949072,1775533847043,-505.75136682,0.00020231,2]
[419949074,1775533847054,-1494.24863318,0.00020231,2]
[419949076,1775533847063,-289.85,0.0002028,2]
[419949078,1775533847072,-671.9675574,0.00020548,2]
[419949080,1775533847082,-360.18009004,0.00020604,2]
[419949082,1775533847091,-2500.0,0.00021045,2]
[419949084,1775533847100,-1117.96086077,0.00021125,2]
[419950105,1775534054578,1000.0,0.00032877,120]
[419950106,1775534468927,200.0,0.00032877,120]
[419950107,1775534481121,-297.62,0.00013,2]
[419950108,1775534481144,-519.76,0.00013,2]
[419950109,1775534510272,-84.02380649,0.00013,2]
[419950110,1775534510296,-129.57238702,0.00013,2]
[419950269,1775534705802,200.0,0.00032877,120]
[419950270,1775534804566,296.71374866,0.00024301,120]
[419950271,1775534804597,298.11517563,0.00024301,120]
[419950273,1775535032299,-2023.845315,0.00012375,2]
[419950274,1775535032311,-834.71197419,0.00012375,2]
[419950275,1775535032322,-2141.44271081,0.00012375,2]
[419950276,1775535032331,-595.0,0.00012375,2]
[419950277,1775535032341,-338.25035148,0.000125,2]
[419950278,1775535032350,-1000.0,0.00013699,2]
[419950279,1775535032360,-300.0,0.00013831,2]
[419950280,1775535032369,-300.0,0.00013832,2]
[419950281,1775535032378,-231.10103372,0.00013832,2]
[419950312,1775535038524,-68.89896628,0.00013832,2]
[419950313,1775535038534,-300.0,0.00013832,2]
[419950314,1775535038543,-300.0,0.00013832,2]
[419950315,1775535038553,-300.0,0.00013832,2]
[419950316,1775535038562,-300.0,0.00013832,2]
[419950317,1775535038572,-300.0,0.00013832,2]
[419950318,1775535038581,-300.0,0.00013832,2]
[419950320,1775535038591,-300.0,0.00013832,2]
[419950322,1775535038600,-300.0,0.00013832,2]